fUSD/lending_fUSD_20250929
["ID","MTS","AMOUNT","RATE_DAILY","PERIOD"]
[388362149,1759122656523,-151.0,0.00019899,2]
[388362150,1759122656532,-277.634182,0.00019899,2]
[388362151,1759122656542,-188.856618,0.00019899,2]
[388362152,1759122656552,-151.0,0.00019899,2]
[388362153,1759122656562,-151.0,0.00019899,2]
[388362154,1759122656572,-277.634182,0.00019899,2]
[388362155,1759122656583,-188.856618,0.00019899,2]
[388362156,1759122656593,-188.856618,0.00019899,2]
[388362157,1759122656603,-295.326947,0.00019899,2]
[388362158,1759122656614,-188.856618,0.00019899,2]
[388362159,1759122656624,-295.326947,0.00019899,2]
[388362160,1759122656633,-295.326947,0.00019899,2]
[388362161,1759122656643,-1274.784192,0.00019899,2]
[388362162,1759122656653,-295.326947,0.00019899,2]
[388362163,1759122656663,-1274.784192,0.00019899,2]
[388362164,1759122656673,-1274.784192,0.00019899,2]
[388362165,1759122656683,-1274.784192,0.00019899,2]
[388362166,1759122656694,-152.021546,0.00019899,2]
[388362167,1759122656705,-1072.535707,0.00019899,2]
[388362168,1759122656715,-151.0,0.00019899,2]
[388362169,1759122656725,-1072.535707,0.00019899,2]
[388362170,1759122656735,-1072.535707,0.00019899,2]
[388362171,1759122656745,-1072.535707,0.00019899,2]
[388362172,1759122656755,-151.0,0.00019899,2]
[388362173,1759122656766,-939.430715,0.00019899,2]
[388362174,1759122656776,-299.138846,0.00019899,2]
[388362175,1759122656786,-939.430715,0.00019899,2]
[388362176,1759122656796,-241.63423,0.00019899,2]
[388362177,1759122656806,-939.430715,0.00019899,2]
[388362178,1759122656816,-151.0,0.00019899,2]
[388362179,1759122656826,-151.0,0.00019899,2]
[388362180,1759122656836,-241.63423,0.00019899,2]
[388362181,1759122656846,-939.430715,0.00019899,2]
[388362182,1759122656856,-241.63423,0.00019899,2]
[388362183,1759122656866,-241.63423,0.00019899,2]
[388362184,1759122656875,-151.0,0.00019899,2]
[388362185,1759122656885,-151.0,0.00019899,2]
[388362186,1759122656897,-151.0,0.00019899,2]
[388362187,1759122656908,-184.82962,0.00019899,2]
[388362188,1759122656918,-151.0,0.00019899,2]
[388362189,1759122656928,-197.355106,0.00019899,2]
[388362190,1759122656937,-197.355106,0.00019899,2]
[388362191,1759122656948,-151.0,0.00019899,2]
[388362192,1759122656957,-197.355106,0.00019899,2]
[388362193,1759122656967,-197.355106,0.00019899,2]
[388362194,1759122656977,-151.0,0.00019899,2]
[388362195,1759122656987,-540.528801,0.00019899,2]
[388362196,1759122656997,-151.0,0.00019899,2]
[388362197,1759122657007,-1961.40104087,0.000199,2]
[388362198,1759122657017,-156450.71551631,0.000199,2]
[388362199,1759122657027,-4847.71274263,0.000199,3]
[388362200,1759122657036,-206.59550754,0.000199,2]
[388362201,1759122657045,-230131.68105808,0.000199,2]
[388362202,1759122657055,-26854.86570542,0.000199,2]
[388362203,1759122657065,-500.0,0.000199,2]
[388362204,1759122657075,-500.0,0.000199,2]
[388362205,1759122657084,-500.0,0.000199,2]
[388362206,1759122657094,-500.0,0.000199,2]
[388362207,1759122657104,-497.99948098,0.000199,2]
[388362208,1759122657115,-188.90935335,0.000199,2]
[388362209,1759122657127,-157.54493997,0.000199,2]
[388362210,1759122657137,-151.0,0.000199,2]
[388362211,1759122657147,-196.65633391,0.000199,2]
[388362212,1759122657159,-151.0,0.000199,2]
[388362213,1759122657174,-151.0,0.000199,2]
[388362214,1759122657185,-151.0,0.000199,2]
[388362215,1759122657195,-151.0,0.000199,2]
[388362216,1759122657209,-151.0,0.000199,2]
[388362217,1759122657224,-151.0,0.000199,2]
[388362218,1759122657235,-151.0,0.000199,2]
[388362219,1759122657246,-151.0,0.000199,2]
[388362220,1759122657257,-151.0,0.000199,2]
[388362221,1759122657268,-151.0,0.000199,2]
[388362222,1759122657280,-153.736039,0.000199,2]
[388362223,1759122657293,-151.0,0.000199,2]
[388362224,1759122657303,-151.0,0.000199,2]
[388362225,1759122657313,-151.0,0.000199,2]
[388362226,1759122657323,-151.0,0.000199,2]
[388362227,1759122657333,-151.0,0.000199,2]
[388362228,1759122657344,-151.0,0.000199,2]
[388362229,1759122657355,-151.0,0.000199,2]
[388362230,1759122657364,-151.0,0.000199,2]
[388362231,1759122657374,-151.0,0.000199,2]
[388362232,1759122657384,-151.0,0.000199,2]
[388362233,1759122657394,-151.0,0.000199,2]
[388362234,1759122657404,-151.0,0.000199,2]
[388362235,1759122657414,-151.0,0.000199,2]
[388362236,1759122657424,-151.0,0.000199,2]
[388362237,1759122657434,-151.0,0.000199,2]
[388362238,1759122657444,-270.366011,0.000199,2]
[388362239,1759122657453,-151.0,0.000199,2]
[388362240,1759122657463,-151.0,0.000199,2]
[388362241,1759122657474,-151.0,0.000199,2]
[388362242,1759122657488,-151.0,0.000199,2]
[388362243,1759122657499,-210.927064,0.000199,2]
[388362244,1759122657509,-151.0,0.000199,2]
[388362245,1759122657519,-151.0,0.000199,2]
[388362246,1759122657529,-151.0,0.000199,2]
[388362247,1759122657539,-311.594525,0.000199,2]
[388362248,1759122657550,-311.594525,0.000199,2]
[388362249,1759122657571,-336.031665,0.000199,2]
[388362250,1759122657588,-311.594525,0.000199,2]
[388362251,1759122657599,-336.031665,0.000199,2]
[388362252,1759122657610,-311.594525,0.000199,2]
[388362253,1759122657620,-336.031665,0.000199,2]
[388362254,1759122657630,-336.031665,0.000199,2]
[388362255,1759122657640,-152.254112,0.000199,2]
[388362256,1759122657650,-151.0,0.000199,2]
[388362257,1759122657660,-151.0,0.000199,2]
[388362258,1759122657670,-151.0,0.000199,2]
[388362259,1759122657680,-151.0,0.000199,2]
[388362260,1759122657690,-180.815376,0.000199,2]
[388362261,1759122657700,-151.0,0.000199,2]
[388362262,1759122657710,-151.0,0.000199,2]
[388362263,1759122657719,-151.967681,0.000199,2]
[388362264,1759122657730,-151.0,0.000199,2]
[388362265,1759122657741,-151.0,0.000199,2]
[388362266,1759122657751,-151.0,0.000199,2]
[388362267,1759122657762,-151.0,0.000199,2]
[388362268,1759122657774,-151.0,0.000199,2]
[388362269,1759122657784,-151.0,0.000199,2]
[388362270,1759122657794,-151.0,0.000199,2]
[388362271,1759122657805,-151.0,0.000199,2]
[388362272,1759122657815,-151.0,0.000199,2]
[388362273,1759122657826,-151.0,0.000199,2]
[388362274,1759122657836,-151.0,0.000199,2]
[388362275,1759122657847,-151.0,0.000199,2]
[388362276,1759122657857,-151.0,0.000199,2]
[388362277,1759122657868,-151.0,0.000199,2]
[388362278,1759122657879,-151.0,0.000199,2]
[388362279,1759122657890,-151.0,0.000199,2]
[388362280,1759122657900,-151.0,0.000199,2]
[388362281,1759122657911,-297.215949,0.000199,2]
[388362282,1759122657921,-151.0,0.000199,2]
[388362283,1759122657931,-297.215949,0.000199,2]
[388362284,1759122657942,-151.0,0.000199,2]
[388362285,1759122657957,-297.215949,0.000199,2]
[388362286,1759122657968,-297.215949,0.000199,2]
[388362287,1759122657978,-297.215949,0.000199,2]
[388362288,1759122657988,-297.215949,0.000199,2]
[388362289,1759122657999,-297.215949,0.000199,2]
[388362290,1759122658010,-297.215949,0.000199,2]
[388362291,1759122658022,-151.0,0.000199,2]
[388362292,1759122658032,-151.0,0.000199,2]
[388362293,1759122658043,-277.551532,0.000199,2]
[388362294,1759122658052,-171.436793,0.000199,2]
[388362295,1759122658063,-151.0,0.000199,2]
[388362296,1759122658076,-151.0,0.000199,2]
[388362297,1759122658086,-151.0,0.000199,2]
[388362298,1759122658096,-151.0,0.000199,2]
[388362299,1759122658106,-151.0,0.000199,2]
[388362300,1759122658116,-618.930777,0.000199,2]
[388362301,1759122658126,-618.930777,0.000199,2]
[388362302,1759122658136,-618.930777,0.000199,2]
[388362303,1759122658147,-618.930781,0.000199,2]
[388362304,1759122658157,-151.0,0.000199,2]
[388362305,1759122658166,-183.501408,0.000199,2]
[388362306,1759122658177,-183.501408,0.000199,2]
[388362307,1759122658188,-183.501408,0.000199,2]
[388362308,1759122658198,-183.50140514,0.000199,2]
[388362309,1759122658208,-151.0,0.000199,2]
[388362310,1759122658218,-151.0,0.000199,2]
[388362311,1759122658228,-380.567849,0.000199,2]
[388362312,1759122658243,-219.37246,0.000199,2]
[388362313,1759122658253,-380.567849,0.000199,2]
[388362314,1759122658264,-380.567849,0.000199,2]
[388362315,1759122658274,-380.567847,0.000199,2]
[388362316,1759122658284,-151.0,0.000199,2]
[388362317,1759122658294,-151.0,0.000199,2]
[388362318,1759122658304,-151.0,0.000199,2]
[388362319,1759122658314,-411.61980374,0.000199,2]
[388362320,1759122658324,-151.0,0.000199,2]
[388362321,1759122658334,-151.0,0.000199,2]
[388362322,1759122658345,-151.0,0.000199,2]
[388362323,1759122658355,-151.0,0.000199,2]
[388362324,1759122658365,-151.0,0.000199,2]
[388362325,1759122658376,-151.0,0.000199,2]
[388362326,1759122658386,-151.0,0.000199,2]
[388362327,1759122658395,-151.0,0.000199,2]
[388362328,1759122658406,-151.0,0.000199,2]
[388362329,1759122658416,-151.0,0.000199,2]
[388362330,1759122658427,-151.0,0.000199,2]
[388362331,1759122658438,-151.0,0.000199,2]
[388362332,1759122658448,-151.0,0.000199,2]
[388362333,1759122658459,-168.156982,0.000199,2]
[388362334,1759122658470,-151.0,0.000199,2]
[388362335,1759122658485,-151.0,0.000199,2]
[388362336,1759122658496,-349.115723,0.000199,2]
[388362337,1759122658506,-349.115723,0.000199,2]
[388362338,1759122658516,-349.115723,0.000199,2]
[388362339,1759122658526,-349.115723,0.000199,2]
[388362340,1759122658536,-151.0,0.000199,2]
[388362341,1759122658545,-151.0,0.000199,2]
[388362342,1759122658555,-349.115723,0.000199,2]
[388362343,1759122658564,-349.115723,0.000199,2]
[388362344,1759122658574,-151.0,0.000199,2]
[388362345,1759122658585,-151.0,0.000199,2]
[388362346,1759122658596,-349.115723,0.000199,2]
[388362347,1759122658607,-349.115723,0.000199,2]
[388362348,1759122658616,-151.0,0.000199,2]
[388362349,1759122658626,-156.763205,0.000199,2]
[388362350,1759122658637,-151.0,0.000199,2]
[388362351,1759122658646,-272.540419,0.000199,2]
[388362352,1759122658656,-272.540419,0.000199,2]
[388362353,1759122658666,-272.540419,0.000199,2]
[388362354,1759122658676,-272.540419,0.000199,2]
[388362355,1759122658686,-272.540419,0.000199,2]
[388362356,1759122658695,-272.540419,0.000199,2]
[388362357,1759122658706,-259.182165,0.000199,2]
[388362358,1759122658716,-259.182165,0.000199,2]
[388362359,1759122658727,-272.540419,0.000199,2]
[388362360,1759122658737,-272.540419,0.000199,2]
[388362361,1759122658750,-259.182165,0.000199,2]
[388362362,1759122658759,-259.182165,0.000199,2]
[388362363,1759122658770,-151.0,0.000199,2]
[388362364,1759122658781,-151.0,0.000199,2]
[388362365,1759122658791,-259.182165,0.000199,2]
[388362366,1759122658802,-259.182165,0.000199,2]
[388362367,1759122658812,-151.0,0.000199,2]
[388362368,1759122658823,-151.0,0.000199,2]
[388362369,1759122658834,-259.182165,0.000199,2]
[388362370,1759122658844,-259.182165,0.000199,2]
[388362371,1759122658854,-151.0,0.000199,2]
[388362372,1759122658865,-151.0,0.000199,2]
[388362373,1759122658875,-151.0,0.000199,2]
[388362374,1759122658886,-151.0,0.000199,2]
[388362375,1759122658896,-151.0,0.000199,2]
[388362376,1759122658907,-151.0,0.000199,2]
[388362377,1759122658917,-151.0,0.000199,2]
[388362378,1759122658926,-151.0,0.000199,2]
[388362379,1759122658936,-151.0,0.000199,2]
[388362380,1759122658946,-151.0,0.000199,2]
[388362381,1759122658956,-151.0,0.000199,2]
[388362382,1759122658966,-151.0,0.000199,2]
[388362383,1759122658976,-151.0,0.000199,2]
[388362384,1759122658986,-151.0,0.000199,2]
[388362385,1759122658997,-151.0,0.000199,2]
[388362386,1759122659007,-158.74633,0.000199,2]
[388362387,1759122659018,-158.74633,0.000199,2]
[388362388,1759122659028,-151.0,0.000199,2]
[388362389,1759122659039,-158.74633,0.000199,2]
[388362390,1759122659054,-151.0,0.000199,2]
[388362391,1759122659065,-158.746322,0.000199,2]
[388362392,1759122659075,-151.0,0.000199,2]
[388362393,1759122659086,-151.0,0.000199,2]
[388362394,1759122659095,-151.0,0.000199,2]
[388362395,1759122659106,-204.156098,0.000199,2]
[388362396,1759122659116,-204.156098,0.000199,2]
[388362397,1759122659128,-151.0,0.000199,2]
[388362398,1759122659138,-204.156098,0.000199,2]
[388362399,1759122659148,-204.156096,0.000199,2]
[388362400,1759122659159,-218.48503,0.000199,2]
[388362401,1759122659169,-231.762855,0.000199,2]
[388362402,1759122659179,-231.762855,0.000199,2]
[388362403,1759122659189,-231.762855,0.000199,2]
[388362404,1759122659199,-231.762847,0.000199,2]
[388362405,1759122659210,-160.721109,0.000199,2]
[388362406,1759122659221,-151.0,0.000199,2]
[388362407,1759122659231,-160.721109,0.000199,2]
[388362408,1759122659242,-160.721109,0.000199,2]
[388362409,1759122659252,-160.721109,0.000199,2]
[388362410,1759122659262,-277.634182,0.000199,2]
[388362411,1759122659272,-277.634182,0.000199,2]
[388362412,1759122659283,-151.0,0.000199,2]
[388362413,1759122659293,-151.0,0.000199,2]
[388362414,1759122659303,-277.634182,0.000199,2]
[388362415,1759122659313,-188.856618,0.000199,2]
[388362416,1759122659323,-151.0,0.000199,2]
[388362417,1759122659333,-277.634182,0.000199,2]
[388362418,1759122659343,-188.856618,0.000199,2]
[388362419,1759122659353,-188.856618,0.000199,2]
[388362420,1759122659363,-295.326947,0.000199,2]
[388362421,1759122659372,-188.856618,0.000199,2]
[388362422,1759122659382,-295.326947,0.000199,2]
[388362423,1759122659392,-295.326947,0.000199,2]
[388362424,1759122659402,-1274.784192,0.000199,2]
[388362425,1759122659413,-295.326947,0.000199,2]
[388362426,1759122659422,-1274.784192,0.000199,2]
[388362427,1759122659432,-1274.784192,0.000199,2]
[388362428,1759122659443,-1274.784192,0.000199,2]
[388362429,1759122659454,-1072.535707,0.000199,2]
[388362430,1759122659463,-151.0,0.000199,2]
[388362431,1759122659474,-1072.535707,0.000199,2]
[388362432,1759122659488,-1072.535707,0.000199,2]
[388362433,1759122659499,-1072.535707,0.000199,2]
[388362434,1759122659508,-1205.3756743,0.000199,2]
[388362435,1759122659519,-939.430715,0.000199,2]
[388362436,1759122659529,-939.430715,0.000199,2]
[388362437,1759122659538,-241.63423,0.000199,2]
[388362438,1759122659548,-939.430715,0.000199,2]
[388362439,1759122659560,-151.0,0.000199,2]
[388362440,1759122659570,-267.97688,0.000199,2]
[388362441,1759122659580,-241.63423,0.000199,2]
[388362442,1759122659590,-939.430715,0.000199,2]
[388362443,1759122659600,-241.63423,0.000199,2]
[388362444,1759122659609,-241.63423,0.000199,2]
[388362445,1759122659619,-151.0,0.000199,2]
[388362446,1759122659629,-157.39097183,0.000199,2]
[388362447,1759122659638,-727.22479269,0.000199,2]
[388362448,1759122659648,-151.0,0.000199,2]
[388362449,1759122659658,-151.0,0.000199,2]
[388362450,1759122659672,-824.34826044,0.000199,2]
[388362451,1759122659685,-197.355106,0.000199,2]
[388362452,1759122659694,-197.355106,0.000199,2]
[388362453,1759122659704,-197.355106,0.000199,2]
[388362454,1759122659714,-197.355106,0.000199,2]
[388362455,1759122659723,-151.0,0.000199,2]
[388362456,1759122659733,-540.528801,0.000199,2]
[388362457,1759122659743,-151.0,0.000199,2]
[388362458,1759122659754,-174.91311306,0.000199,2]
[388362459,1759122659764,-11408.45375328,0.000199,2]
[388362460,1759122659773,-720.0,0.00019921,2]
[388362461,1759122659783,-1680.0,0.00019948,2]
[388362462,1759122659793,-132867.84858619,0.0001995,15]
[388362463,1759122659803,-62148.32673843,0.0001995,15]
[388362464,1759122659813,-151.0,0.0001995,2]
[388362465,1759122659823,-151.0,0.0001995,2]
[388362466,1759122659833,-151.0,0.0001995,2]
[388362467,1759122659843,-151.0,0.0001995,2]
[388362468,1759122659853,-151.0,0.0001995,2]
[388362469,1759122659863,-151.0,0.0001995,2]
[388362470,1759122659873,-151.0,0.0001995,2]
[388362471,1759122659884,-154.120184,0.0001995,2]
[388362472,1759122659894,-151.0,0.0001995,2]
[388362473,1759122659905,-151.0,0.0001995,2]
[388362474,1759122659923,-151.0,0.0001995,2]
[388362475,1759122659933,-151.0,0.0001995,2]
[388362476,1759122659943,-151.0,0.0001995,2]
[388362477,1759122659953,-151.0,0.0001995,2]
[388362478,1759122659963,-151.0,0.0001995,2]
[388362479,1759122659973,-151.0,0.0001995,2]
[388362480,1759122659984,-151.0,0.0001995,2]
[388362481,1759122659994,-151.0,0.0001995,2]
[388362482,1759122660004,-151.0,0.0001995,2]
[388362483,1759122660014,-151.0,0.0001995,2]
[388362484,1759122660024,-151.0,0.0001995,2]
[388362485,1759122660034,-151.0,0.0001995,2]
[388362486,1759122660045,-151.0,0.0001995,2]
[388362487,1759122660055,-151.0,0.0001995,2]
[388362488,1759122660070,-151.0,0.0001995,2]
[388362489,1759122660079,-151.0,0.0001995,2]
[388362490,1759122660090,-151.0,0.0001995,2]
[388362491,1759122660100,-151.0,0.0001995,2]
[388362492,1759122660111,-151.0,0.0001995,2]
[388362493,1759122660123,-311.594525,0.0001995,2]
[388362494,1759122660133,-311.594525,0.0001995,2]
[388362495,1759122660144,-336.031665,0.0001995,2]
[388362496,1759122660155,-311.594525,0.0001995,2]
[388362497,1759122660166,-336.031665,0.0001995,2]
[388362498,1759122660176,-311.594529,0.0001995,2]
[388362499,1759122660187,-336.031665,0.0001995,2]
[388362500,1759122660198,-336.031671,0.0001995,2]
[388362501,1759122660209,-151.0,0.0001995,2]
[388362502,1759122660220,-151.0,0.0001995,2]
[388362503,1759122660231,-283.017243,0.0001995,2]
[388362504,1759122660242,-274.781708,0.0001995,2]
[388362505,1759122660255,-151.0,0.0001995,2]
[388362506,1759122660266,-151.0,0.0001995,2]
[388362507,1759122660277,-151.0,0.0001995,2]
[388362508,1759122660291,-151.0,0.0001995,2]
[388362509,1759122660303,-151.0,0.0001995,2]
[388362510,1759122660314,-151.0,0.0001995,2]
[388362511,1759122660325,-297.215949,0.0001995,2]
[388362512,1759122660335,-297.215949,0.0001995,2]
[388362513,1759122660346,-297.215949,0.0001995,2]
[388362514,1759122660357,-297.215953,0.0001995,2]
[388362515,1759122660367,-202.494164,0.0001995,2]
[388362516,1759122660378,-151.0,0.0001995,2]
[388362517,1759122660389,-151.0,0.0001995,2]
[388362518,1759122660399,-151.0,0.0001995,2]
[388362519,1759122660409,-151.0,0.0001995,2]
[388362520,1759122660419,-151.0,0.0001995,2]
[388362521,1759122660429,-349.115723,0.0001995,2]
[388362522,1759122660439,-349.115723,0.0001995,2]
[388362523,1759122660449,-266.416524,0.0001995,2]
[388362524,1759122660459,-349.115723,0.0001995,2]
[388362525,1759122660470,-151.0,0.0001995,2]
[388362526,1759122660483,-349.115731,0.0001995,2]
[388362527,1759122660493,-272.540419,0.0001995,2]
[388362528,1759122660503,-272.540419,0.0001995,2]
[388362529,1759122660515,-272.540419,0.0001995,2]
[388362530,1759122660525,-259.182165,0.0001995,2]
[388362531,1759122660536,-272.540427,0.0001995,2]
[388362532,1759122660546,-259.182165,0.0001995,2]
[388362533,1759122660556,-151.0,0.0001995,2]
[388362534,1759122660566,-259.182165,0.0001995,2]
[388362535,1759122660576,-151.0,0.0001995,2]
[388362536,1759122660586,-259.182167,0.0001995,2]
[388362537,1759122660596,-151.0,0.0001995,2]
[388362538,1759122660606,-151.0,0.0001995,2]
[388362539,1759122660616,-151.0,0.0001995,2]
[388362540,1759122660626,-151.0,0.0001995,2]
[388362541,1759122660635,-151.0,0.0001995,2]
[388362542,1759122660645,-151.0,0.0001995,2]
[388362543,1759122660655,-151.0,0.0001995,2]
[388362544,1759122660665,-160.721109,0.0001995,2]
[388362545,1759122660677,-151.0,0.0001995,2]
[388362546,1759122660688,-160.721109,0.0001995,2]
[388362547,1759122660701,-160.721109,0.0001995,2]
[388362548,1759122660714,-160.721113,0.0001995,2]
[388362549,1759122660727,-277.634182,0.0001995,2]
[388362550,1759122660741,-277.634182,0.0001995,2]
[388362551,1759122660755,-151.0,0.0001995,2]
[388362552,1759122660769,-151.0,0.0001995,2]
[388362553,1759122660782,-277.634182,0.0001995,2]
[388362554,1759122660795,-188.856618,0.0001995,2]
[388362555,1759122660808,-151.0,0.0001995,2]
[388362556,1759122660821,-277.634174,0.0001995,2]
[388362557,1759122660833,-188.856618,0.0001995,2]
[388362558,1759122660845,-188.856618,0.0001995,2]
[388362559,1759122660857,-295.326947,0.0001995,2]
[388362560,1759122660869,-188.856618,0.0001995,2]
[388362561,1759122660880,-295.326947,0.0001995,2]
[388362562,1759122660892,-295.326947,0.0001995,2]
[388362563,1759122660908,-1274.784192,0.0001995,2]
[388362564,1759122660925,-295.326944,0.0001995,2]
[388362565,1759122660938,-1274.784192,0.0001995,2]
[388362566,1759122660949,-1274.784192,0.0001995,2]
[388362567,1759122660975,-1274.784184,0.0001995,2]
[388362568,1759122660986,-1072.535707,0.0001995,2]
[388362569,1759122660999,-151.0,0.0001995,2]
[388362570,1759122661011,-1072.535707,0.0001995,2]
[388362571,1759122661024,-1072.535707,0.0001995,2]
[388362572,1759122661035,-1072.535706,0.0001995,2]
[388362573,1759122661047,-939.430715,0.0001995,2]
[388362574,1759122661059,-939.430715,0.0001995,2]
[388362575,1759122661071,-241.63423,0.0001995,2]
[388362576,1759122661082,-939.430715,0.0001995,2]
[388362577,1759122661094,-151.0,0.0001995,2]
[388362578,1759122661107,-939.430713,0.0001995,2]
[388362579,1759122661120,-241.63423,0.0001995,2]
[388362580,1759122661132,-241.63423,0.0001995,2]
[388362581,1759122661145,-241.634222,0.0001995,2]
[388362582,1759122661158,-151.0,0.0001995,2]
[388362583,1759122661170,-151.0,0.0001995,2]
[388362584,1759122661182,-197.355106,0.0001995,2]
[388362585,1759122661194,-197.355106,0.0001995,2]
[388362586,1759122661207,-197.355106,0.0001995,2]
[388362587,1759122661219,-197.355105,0.0001995,2]
[388362588,1759122661230,-151.0,0.0001995,2]
[388362589,1759122661242,-540.528801,0.0001995,2]
[388362590,1759122661256,-151.0,0.0001995,2]
[388362591,1759122661268,-1000.0,0.00019972,2]
[388362592,1759122661279,-150.0,0.00019973,2]
[388362593,1759122661291,-634744.41786405,0.00019973,2]
[388362594,1759122661303,-2697.0,0.00019979,5]
[388362595,1759122661314,-36467.0323891,0.0001999,2]
[388362596,1759122661332,-174.35773542,0.0001999,2]
[388362597,1759122661347,-174.35773542,0.0001999,2]
[388362598,1759122661359,-184.5125911,0.00019999,7]
[388362599,1759122661371,-78957.71624963,0.00019999,7]
[388362600,1759122661383,-1000.0,0.00019999,2]
[388362601,1759122661394,-1000.0,0.00019999,2]
[388362602,1759122661406,-1000.0,0.00019999,2]
[388362603,1759122661418,-1000.0,0.00019999,2]
[388362604,1759122661429,-160.876987,0.00019999,2]
[388362605,1759122661441,-151.0,0.00019999,2]
[388362606,1759122661452,-151.0,0.00019999,2]
[388362607,1759122661464,-151.0,0.00019999,2]
[388362608,1759122661476,-151.0,0.00019999,2]
[388362609,1759122661491,-151.0,0.00019999,2]
[388362610,1759122661503,-151.0,0.00019999,2]
[388362611,1759122661515,-151.0,0.00019999,2]
[388362612,1759122661526,-151.0,0.00019999,2]
[388362613,1759122661538,-1000.0,0.00019999,2]
[388362614,1759122661550,-899095.64481759,0.0002,2]
[388362615,1759122661565,-251721.33567035,0.0002,2]
[388362616,1759122661578,-900.0,0.0002,2]
[388362617,1759122661591,-900.0,0.0002,2]
[388362618,1759122661604,-900.0,0.0002,2]
[388362619,1759122661616,-1300.0,0.0002,2]
[388362620,1759122661627,-1046.783,0.0002,2]
[388362621,1759122661639,-37355.09605066,0.0002,2]
[388362622,1759122661650,-324501.52912889,0.0002,2]
[388362623,1759122661662,-8682.36316919,0.0002,2]
[388362624,1759122661673,-142923.18474126,0.0002,5]
[388362625,1759122661685,-400.0,0.0002,2]
[388362626,1759122661697,-1385.89,0.0002,3]
[388362627,1759122661714,-101538.38087502,0.0002,2]
[388362628,1759122661727,-393.0,0.0002,2]
[388362629,1759122661740,-598.15426865,0.0002,2]
[388362630,1759122661753,-519.9203407,0.0002,7]
[388362631,1759122661767,-19092.8503736,0.0002,2]
[388362632,1759122661779,-15795.56115344,0.0002,14]
[388362633,1759122661792,-73250.12997569,0.0002,10]
[388362634,1759122661804,-119523.01973169,0.0002,2]
[388362635,1759122661817,-202.54,0.0002,2]
[388362636,1759122661829,-3645.0,0.0002,2]
[388362637,1759122661842,-306496.08398527,0.0002,2]
[388362638,1759122661854,-514.0,0.0002,2]
[388362639,1759122661866,-288622.90612459,0.0002,2]
[388362640,1759122661878,-2822.89649982,0.0002,2]
[388362641,1759122661890,-262972.0803429,0.0002,2]
[388362642,1759122661902,-40000.00238093,0.0002,2]
[388362643,1759122661915,-1123025.70056242,0.0002,2]
[388362644,1759122661927,-117440.9120366,0.0002,2]
[388362645,1759122663326,-163315.53492693,0.0002,2]
[388362646,1759122663406,-21985.63988538,0.0002,2]
[388362647,1759122663417,-951873.49796058,0.0002,2]
[388362648,1759122663486,-540.528801,0.00019899,2]